bitfinex-derivatives/quotes_ETHF0:USTF0_20260310
["timestamp","ask_amount","ask_price","bid_price","bid_amount"]
[1773151546549,3.25174074,2033.8,2032.8,3.32778991]
[1773151546750,3.25174074,2033.8,2031.5,6.05411]
[1773151546751,3.09509272,2033.6,2032.4,3.20197557]
[1773151547547,3.09509272,2033.6,2032.6,3.20197557]
[1773151547752,3.09509272,2034.1,2032.8,3.20197557]
[1773151548151,3.09509272,2034.1,2033.0,3.20197557]
[1773151548350,3.09509272,2034.1,2033.2,3.20197557]
[1773151548553,0.0058127,2034.3,2033.4,3.20197557]
[1773151548753,3.10090542,2034.3,2033.5,6.643]
[1773151549156,0.0058127,2034.3,2033.6,3.20197557]
[1773151550156,0.0058127,2034.3,2033.8,3.20197557]
[1773151550457,0.0058127,2034.3,2033.4,0.00506191]
[1773151550458,3.10090542,2034.3,2033.5,3.20197557]
[1773151550658,3.10090542,2034.3,2033.5,9.84097557]
[1773151550861,3.34668542,2034.3,2033.4,0.00506191]
[1773151551961,3.34668542,2034.3,2033.1,3.20197557]
[1773151552151,3.09509272,2033.8,2032.8,3.20197557]
[1773151552750,3.09509272,2033.8,2032.8,9.83497557]
[1773151552950,3.09509272,2033.8,2032.8,9.84059565]
[1773151553157,3.09509272,2033.8,2032.8,3.20759565]
[1773151553462,3.09509272,2033.8,2032.9,3.20197557]
[1773151554161,3.09509272,2033.8,2032.8,6.63362008]
[1773151554351,3.09509272,2033.8,2032.8,3.20759565]
[1773151554552,3.09509272,2033.8,2032.8,9.83559565]
[1773151554757,3.09509272,2033.8,2033.0,3.20197557]
[1773151556458,3.34089272,2034.1,2033.0,3.20197557]
[1773151557456,3.09509272,2033.6,2032.8,0.00562008]
[1773151557657,3.09509272,2033.2,2032.1,3.20197557]
[1773151557859,3.09509272,2033.2,2032.2,9.81897557]
[1773151558263,3.09509272,2033.2,2032.2,3.20197557]
[1773151558563,3.09509272,2033.2,2032.0,3.20197557]
[1773151558763,3.09509272,2033.0,2032.0,3.20790819]
[1773151559556,3.09509272,2032.8,2032.0,0.00593262]
[1773151559761,3.09509272,2032.6,2031.5,3.20197557]
[1773151560461,3.09509272,2032.6,2031.5,3.44808557]
[1773151560659,3.09509272,2032.6,2031.5,3.45378204]
[1773151560966,3.09509272,2032.6,2031.5,3.20767204]
[1773151561463,3.09509272,2032.6,2031.6,6.603]
[1773151561664,0.00390262,2032.8,2031.7,3.20197557]
[1773151562159,3.09899534,2032.8,2031.8,9.80297557]
[1773151562360,3.09509272,2032.6,2031.6,3.20197557]
[1773151562559,3.09509272,2032.6,2031.7,3.20197557]
[1773151562763,3.09509272,2032.6,2031.5,9.80667204]
[1773151563060,3.09509272,2032.6,2031.5,3.20767204]
[1773151563361,3.09509272,2032.4,2031.5,0.00569647]
[1773151563764,3.09509272,2032.4,2031.5,3.0210128]
[1773151564157,0.00390262,2032.8,2031.5,3.0210128]
[1773151564361,0.00390262,2032.8,2031.7,3.01531633]
[1773151564558,2.9417227,2032.8,2031.9,3.01531633]
[1773151565166,2.93782008,2032.4,2031.5,0.00569647]
[1773151565559,2.93782008,2032.4,2031.5,3.0210128]
[1773151565972,2.93782008,2032.7,2031.7,3.01531633]
[1773151566463,0.00390262,2032.8,2031.9,3.01531633]
[1773151566672,0.00390262,2032.8,2031.8,0.24607]
[1773151566673,2.9417227,2032.8,2031.8,6.591]
[1773151566871,2.9417227,2032.8,2031.9,3.01531633]
[1773151567065,2.9417227,2032.8,2031.6,3.01531633]
[1773151567464,3.1876727,2032.8,2031.6,3.01531633]
[1773151567665,3.1876727,2032.8,2031.1,3.01531633]
[1773151567666,2.93782008,2032.3,2031.1,3.01531633]
[1773151567965,0.00390262,2032.8,2031.5,3.01531633]
[1773151568171,2.9417227,2032.8,2031.7,3.01531633]
[1773151568368,2.9417227,2032.8,2031.8,3.01531633]
[1773151568768,2.9417227,2032.8,2031.8,3.02157057]
[1773151568975,3.1876727,2032.8,2031.8,3.02157057]
[1773151569271,2.93782008,2032.5,2031.3,3.01531633]
[1773151569568,0.246,2032.4,2031.3,3.01531633]
[1773151569873,0.246,2032.4,2030.8,3.01531633]
[1773151569874,2.93782008,2031.7,2030.8,3.01531633]
[1773151570069,2.93782008,2031.5,2030.5,3.01531633]
[1773151570273,2.93782008,2031.5,2030.5,3.02105201]
[1773151570771,2.93782008,2031.5,2030.5,0.00573568]
[1773151570967,2.93782008,2031.3,2030.5,0.00573568]
[1773151571168,2.93782008,2031.1,2029.8,3.01531633]
[1773151571474,2.93782008,2030.9,2029.8,3.01531633]
[1773151571669,0.24617,2031.0,2029.1,3.01531633]
[1773151571670,2.93782008,2030.5,2029.1,3.01531633]
[1773151571870,2.93782008,2030.3,2028.8,3.01531633]
[1773151572267,2.93782008,2030.3,2029.0,3.01531633]
[1773151573274,2.93782008,2030.3,2029.1,3.01531633]
[1773151573570,2.93782008,2030.1,2028.8,3.0190231]
[1773151573772,0.24626,2030.2,2028.8,0.00370677]
[1773151573773,2.93782008,2029.9,2028.8,0.00370677]
[1773151574475,2.93782008,2029.9,2028.8,3.0190231]
[1773151574979,2.93782008,2029.9,2028.8,0.00370677]
[1773151575178,2.93782008,2029.7,2028.8,0.00370677]
[1773151575382,2.94330554,2029.7,2028.8,0.00370677]
[1773151575581,2.93782008,2029.5,2028.1,3.01531633]
[1773151575880,2.93782008,2029.5,2028.1,3.26182633]
[1773151576076,2.93782008,2029.5,2028.2,3.01531633]
[1773151576475,2.93782008,2029.5,2028.2,3.01992645]
[1773151576679,3.97499902,2031.1,2029.3,3.01531633]
[1773151576981,2.93782008,2030.7,2029.5,3.01531633]
[1773151577775,2.94418375,2030.7,2029.5,3.01531633]
[1773151578678,0.00636367,2030.7,2029.6,3.01531633]
[1773151578878,2.94418375,2030.7,2029.7,3.01531633]
[1773151579073,2.94418375,2030.7,2029.7,3.01930032]
[1773151579675,0.00636367,2030.7,2029.7,3.01930032]
[1773151579878,0.00636367,2030.7,2029.9,3.01531633]
[1773151580076,2.93782008,2031.2,2029.9,3.01531633]
[1773151580077,2.93782008,2031.2,2030.1,9.07378633]
[1773151580274,2.93782008,2031.5,2030.3,3.01531633]
[1773151580469,2.93782008,2032.3,2030.4,3.01531633]
[1773151580675,2.93782008,2031.9,2030.4,3.01531633]
[1773151581077,2.94233996,2031.9,2030.4,3.01531633]
[1773151581380,2.93782008,2031.7,2030.4,3.01531633]
[1773151582983,0.24609,2031.6,2029.9,3.01531633]
[1773151583278,2.93782008,2031.3,2030.1,3.01531633]
[1773151583679,2.93782008,2030.9,2029.8,3.01531633]
[1773151583878,2.93782008,2030.9,2029.7,0.00398399]
[1773151584083,2.93782008,2030.5,2029.7,0.00398399]
[1773151584584,2.93782008,2030.5,2029.1,3.01531633]
[1773151584879,2.93782008,2030.3,2029.1,3.01531633]
[1773151585675,2.94363946,2030.3,2029.1,3.02037801]
[1773151585878,2.93782008,2030.1,2029.1,0.00506168]
[1773151586278,2.93782008,2030.1,2029.1,3.02037801]
[1773151587487,0.00581938,2030.3,2029.1,3.02037801]
[1773151587789,0.00581938,2030.3,2029.5,3.01531633]
[1773151588192,2.93782008,2030.8,2029.7,3.01531633]
[1773151588382,2.93782008,2031.2,2029.9,3.01531633]
[1773151588582,2.93782008,2031.2,2030.1,3.01531633]
[1773151588881,2.93782008,2031.0,2029.8,3.01531633]
[1773151589289,0.00475391,2031.0,2030.1,3.26159633]
[1773151589583,2.94257399,2031.0,2030.0,3.01531633]
[1773151590585,2.93782008,2030.8,2029.3,3.01531633]
[1773151590881,2.93782008,2030.8,2029.4,3.01531633]
[1773151591685,2.93782008,2030.8,2029.5,6.609]
[1773151591885,2.93782008,2030.8,2029.6,3.01531633]
[1773151592279,2.93782008,2030.6,2029.6,3.01531633]
[1773151592488,2.93782008,2030.4,2029.2,3.01531633]
[1773151592781,2.93782008,2030.4,2029.2,9.62331633]
[1773151592983,2.93782008,2030.4,2029.3,3.01531633]
[1773151593180,2.93782008,2030.9,2029.5,3.01531633]
[1773151593987,0.24619,2030.8,2029.6,3.01846879]
[1773151594183,3.16298477,2030.7,2029.1,0.00506168]
[1773151594486,3.16298477,2030.7,2029.3,3.26482879]
[1773151594685,3.16298477,2030.7,2029.5,3.01846879]
[1773151594885,0.00475391,2031.0,2029.9,3.01846879]
[1773151595082,3.16773868,2031.0,2030.1,3.01846879]
[1773151595289,0.00475391,2031.0,2030.3,3.01846879]
[1773151596588,3.16298477,2031.5,2030.4,3.01846879]
[1773151597084,3.16298477,2031.5,2030.5,3.01846879]
[1773151597695,3.16927341,2031.5,2030.5,3.01846879]
[1773151598884,0.00628864,2031.5,2030.5,3.01846879]
[1773151599090,3.16927341,2031.5,2030.7,3.01846879]
[1773151599294,3.16927341,2031.5,2030.7,9.63050755]
[1773151599594,0.00628864,2031.5,2030.8,3.01846879]
[1773151599985,0.00628864,2031.5,2030.8,9.62446879]
[1773151600391,0.00628864,2031.5,2030.9,3.01846879]
[1773151600696,3.16298477,2032.6,2031.3,3.01846879]
[1773151601488,3.40897477,2032.5,2031.4,3.01846879]
[1773151601686,3.16298477,2032.4,2031.0,3.01846879]
[1773151602193,3.16298477,2032.1,2030.7,3.02450755]
[1773151602403,3.40902477,2032.1,2030.7,3.02450755]
[1773151602694,3.16298477,2032.1,2030.7,3.02450755]
[1773151602896,0.00618054,2032.6,2031.1,3.01846879]
[1773151603192,3.16298477,2032.9,2031.5,3.01846879]
[1773151603391,3.16298477,2032.9,2031.6,3.01846879]
[1773151604095,3.16298477,2032.9,2031.8,3.01846879]
[1773151604398,3.16672287,2032.9,2031.9,3.01846879]
[1773151605696,3.16672287,2032.9,2031.6,3.01846879]
[1773151605894,3.40893477,2032.8,2031.6,3.01846879]
[1773151606694,3.16298477,2032.8,2031.6,3.01846879]
[1773151608794,3.13057268,2032.6,2031.3,3.00220029]
[1773151609591,0.24599,2032.5,2031.3,3.00220029]
[1773151609797,3.13057268,2032.4,2031.3,3.00220029]
[1773151612301,0.24606,2031.9,2030.8,3.00220029]
[1773151612500,3.13057268,2031.6,2030.7,0.00603876]
[1773151612697,3.13057268,2031.4,2030.3,3.00220029]
[1773151612902,3.13057268,2031.4,2030.0,3.00220029]
[1773151613100,3.37670268,2031.3,2030.0,3.00220029]
[1773151613696,3.38180688,2031.3,2030.0,3.00728501]
[1773151614804,3.13567688,2031.3,2030.0,3.25356501]
[1773151615402,0.0051042,2031.3,2030.0,3.25356501]
[1773151615602,3.13567688,2031.3,2030.2,3.00220029]
[1773151615906,3.13057268,2031.1,2030.2,3.00220029]
[1773151616301,3.13057268,2030.9,2030.0,3.00728501]
[1773151617998,3.13057268,2031.1,2030.0,3.00728501]
[1773151618711,3.13057268,2030.9,2030.0,0.00508472]
[1773151619910,3.13057268,2030.7,2030.0,0.00508472]
[1773151620107,3.13057268,2030.5,2029.2,6.626]
[1773151620310,3.13057268,2030.5,2028.9,0.24642]
[1773151620311,3.13057268,2030.5,2029.3,3.00220029]
[1773151620512,3.13057268,2030.5,2029.4,3.00220029]
[1773151621104,0.24624,2030.4,2029.4,3.00652838]
[1773151621306,3.13057268,2030.1,2029.0,3.00220029]
[1773151621510,3.13057268,2029.9,2029.0,3.00220029]
[1773151621712,3.13057268,2029.7,2028.5,3.00220029]
[1773151621914,3.13057268,2029.5,2028.0,3.00220029]
[1773151622215,3.13057268,2029.3,2028.0,3.00657509]
[1773151622816,3.13057268,2029.1,2028.0,3.00657509]
[1773151623310,3.13057268,2029.4,2028.0,3.00657509]
[1773151623512,0.00531383,2029.5,2028.4,3.00220029]
[1773151623711,3.07599708,2029.5,2028.4,3.00220029]
[1773151624512,0.00531383,2029.5,2028.8,2.91728586]
[1773151624818,3.07068325,2030.1,2028.8,2.91728586]
[1773151625514,3.07068325,2029.7,2028.5,2.91728586]
[1773151625819,3.07068325,2029.5,2028.1,2.91728586]
[1773151626117,3.07068325,2029.3,2028.1,2.91728586]
[1773151626318,3.31707325,2029.2,2028.0,0.0043748]
[1773151626514,3.31707325,2029.2,2028.0,2.92166066]
[1773151627219,3.07068325,2029.1,2028.0,0.0043748]
[1773151627522,3.07068325,2028.9,2027.4,2.91728586]
[1773151627816,3.07068325,2028.5,2027.1,2.91728586]
[1773151628020,3.07068325,2028.3,2026.6,2.91728586]
[1773151628412,3.07068325,2028.3,2027.2,2.91728586]
[1773151628618,3.07068325,2028.3,2027.2,2.92299008]
[1773151629518,3.07068325,2028.7,2027.2,2.92299008]
[1773151630124,3.07068325,2028.5,2027.2,2.92299008]
[1773151630318,3.07068325,2028.3,2027.2,0.00570422]
[1773151630621,3.07068325,2028.3,2027.2,2.92299008]
[1773151631223,3.07068325,2028.3,2027.2,0.00570422]
[1773151631418,3.07068325,2028.1,2027.2,0.00570422]
[1773151631616,3.31724325,2027.8,2026.3,2.91728586]
[1773151631921,3.07068325,2027.8,2026.3,2.91728586]
[1773151632724,3.07068325,2027.8,2026.3,2.92193014]
[1773151632928,3.07068325,2027.8,2026.4,3.16401586]
[1773151633420,3.07068325,2027.8,2026.4,2.91728586]
[1773151635419,3.07068325,2027.8,2026.5,2.91728586]
[1773151636223,3.07565754,2028.1,2026.7,2.91728586]
[1773151636527,3.07068325,2028.7,2027.5,2.91728586]
[1773151637230,3.07068325,2029.4,2027.5,2.91728586]
[1773151637419,3.075336,2029.4,2027.9,2.91728586]
[1773151637624,3.075336,2029.4,2027.9,2.92326873]
[1773151638421,3.07068325,2029.0,2027.9,0.00598287]
[1773151638829,3.07068325,2029.0,2027.9,2.92326873]
[1773151639229,3.07068325,2028.8,2027.9,0.00598287]
[1773151639626,3.07068325,2028.6,2027.3,2.91728586]
[1773151640532,3.07068325,2028.6,2027.3,2.92130907]
[1773151642326,3.07068325,2028.4,2027.3,2.92130907]
[1773151642523,3.31717325,2028.3,2027.3,0.00402321]
[1773151642820,3.07068325,2028.2,2027.3,0.00402321]
[1773151643023,3.07068325,2028.2,2027.3,2.92130907]
[1773151643231,3.07068325,2028.2,2027.3,0.00402321]
[1773151643730,3.07068325,2028.0,2027.3,0.00402321]
[1773151644829,3.07068325,2028.6,2027.3,2.92130907]
[1773151645025,3.07068325,2028.4,2027.3,2.92130907]
[1773151645233,3.07068325,2028.0,2027.3,2.92130907]
[1773151645424,3.07068325,2028.0,2027.3,0.00402321]
[1773151645623,3.07068325,2028.0,2027.3,2.92130907]
[1773151645932,3.07068325,2028.2,2027.3,2.92130907]
[1773151646626,3.07068325,2028.5,2027.3,2.92130907]
[1773151646829,0.24648,2028.4,2027.3,2.92130907]
[1773151647033,3.07068325,2028.3,2027.3,2.92130907]
[1773151647629,3.07068325,2028.3,2027.3,0.00402321]
[1773151647630,3.07068325,2027.9,2027.3,0.00402321]
[1773151647828,3.07453643,2027.9,2027.3,0.00402321]
[1773151648533,3.07453643,2027.9,2026.9,2.91728586]
[1773151649635,3.07068325,2027.7,2026.9,2.92098792]
[1773151649932,3.07068325,2027.3,2026.1,2.91728586]
[1773151650137,3.07068325,2027.1,2026.1,2.91728586]
[1773151650326,3.07068325,2027.1,2025.5,2.91728586]
[1773151650727,3.07068325,2027.1,2025.5,2.92174624]
[1773151650929,0.24663,2027.2,2025.5,2.92174624]
[1773151650930,3.07068325,2026.9,2025.5,2.92174624]
[1773151651129,6.06721,2027.2,2025.5,2.92174624]
[1773151651130,3.07068325,2026.7,2025.5,2.92174624]
[1773151651726,9.51868325,2026.8,2025.5,2.92174624]
[1773151651932,3.07068325,2026.7,2025.5,2.92174624]
[1773151652931,3.07068325,2027.0,2025.5,3.16856624]
[1773151653232,3.07068325,2027.0,2025.7,2.91728586]
[1773151654541,2.96509441,2027.6,2026.1,2.92670801]
[1773151654734,2.96509441,2027.5,2026.1,2.92670801]
[1773151654932,2.96509441,2027.3,2026.1,2.92670801]
[1773151655530,2.96509441,2027.8,2026.1,2.92670801]
[1773151655730,2.96509441,2027.8,2026.3,2.92670801]
[1773151656042,0.00385318,2027.9,2026.9,2.92670801]
[1773151656335,0.00385318,2027.9,2027.1,2.92670801]
[1773151656534,0.00385318,2027.9,2027.1,2.93266361]
[1773151656938,2.96509441,2028.5,2027.3,2.92670801]
[1773151657338,3.21157441,2028.5,2027.1,2.93266361]
[1773151657739,2.96509441,2028.2,2027.1,2.93266361]
[1773151657934,2.97034483,2028.2,2027.1,2.93266361]
[1773151659441,2.96509441,2028.0,2027.1,0.0059556]
[1773151660041,2.96509441,2027.8,2027.1,0.0059556]
[1773151660243,2.96509441,2027.6,2026.6,2.92670801]
[1773151661348,2.96509441,2027.6,2026.6,2.93264063]
[1773151662145,2.96509441,2027.6,2026.6,0.00593262]
[1773151662648,2.96509441,2027.4,2026.6,0.00593262]
[1773151662847,2.96509441,2027.2,2025.8,2.92670801]
[1773151663146,2.96509441,2027.0,2025.8,2.92670801]
[1773151663352,2.96509441,2026.8,2025.8,2.92670801]
[1773151663749,2.96509441,2027.1,2025.8,2.93283886]
[1773151664548,2.96509441,2027.1,2026.0,2.92670801]
[1773151664748,2.96509441,2027.5,2026.2,2.92670801]
[1773151665257,2.96509441,2027.4,2026.2,2.92670801]
[1773151667854,6.447,2027.6,2026.2,2.92670801]
[1773151668153,2.66511362,2027.5,2026.2,2.92670801]
[1773151668454,2.66511362,2027.3,2026.3,2.64225374]
[1773151669557,2.66511362,2027.1,2025.9,2.64225374]
[1773151669953,2.66511362,2026.9,2025.9,2.64225374]
[1773151671453,2.66511362,2026.7,2025.8,0.00613085]
[1773151671653,2.66511362,2026.3,2025.4,0.90558829]
[1773151671859,2.66511362,2026.1,2025.0,2.64225374]
[1773151672154,0.24677,2026.0,2025.0,2.64225374]
[1773151672354,2.66511362,2025.6,2024.1,2.64225374]
[1773151672555,2.66511362,2025.6,2024.3,2.64225374]
[1773151672859,2.66511362,2025.6,2024.3,2.64743502]
[1773151673053,2.66511362,2025.2,2023.3,2.64225374]
[1773151673254,2.66511362,2025.0,2023.3,2.64225374]
[1773151673753,2.66511362,2024.6,2023.3,2.64225374]
[1773151674155,2.66939931,2024.6,2023.3,2.6463071]
[1773151674352,0.00428569,2024.6,2023.5,2.64225374]
[1773151675356,2.66939931,2024.6,2023.5,2.64225374]
[1773151675551,2.66511362,2024.2,2023.3,0.00405336]
[1773151675762,0.24698,2024.3,2022.7,2.64225374]
[1773151675763,2.66511362,2024.0,2022.7,2.64225374]
[1773151676462,2.91214362,2023.9,2022.7,2.64225374]
[1773151676673,2.66511362,2023.8,2021.8,2.64225374]
[1773151676859,2.66511362,2023.8,2022.0,2.64225374]
[1773151677157,2.66511362,2023.8,2022.4,2.64225374]
[1773151677359,2.66511362,2024.0,2022.6,2.64225374]
[1773151677559,2.91214362,2024.0,2022.6,2.64225374]
[1773151677863,2.66511362,2023.5,2021.9,2.64225374]
[1773151678062,9.11511362,2023.4,2021.9,2.64225374]
[1773151678464,2.66511362,2023.3,2021.9,2.64225374]
[1773151679362,2.66511362,2023.6,2022.1,2.64225374]
[1773151680861,2.66511362,2023.2,2021.8,2.64724584]
[1773151681064,2.66511362,2023.0,2021.8,2.64724584]
[1773151681258,2.6699907,2023.0,2021.8,2.64724584]
[1773151681563,0.00487708,2023.0,2021.8,2.64724584]
[1773151681758,2.6699907,2023.0,2021.8,2.64724584]
[1773151682863,0.00487708,2023.0,2021.8,2.64724584]
[1773151683065,2.6699907,2023.0,2021.8,2.64724584]
[1773151683360,2.6699907,2023.0,2020.5,2.64225374]
[1773151683361,2.66511362,2022.4,2020.5,2.64225374]
[1773151683562,2.66511362,2022.2,2020.5,2.64225374]
[1773151683759,2.60899221,2021.8,2020.4,0.77723161]
[1773151683960,2.60899221,2021.6,2019.5,3.03988423]
[1773151684468,2.60899221,2021.4,2019.5,3.04386142]
[1773151684657,2.61322126,2021.4,2019.5,3.04386142]
[1773151685057,2.60899221,2021.2,2019.5,3.04386142]
[1773151685264,2.60899221,2020.4,2019.5,0.00397719]
[1773151685460,2.60899221,2020.2,2018.7,2.79231423]
[1773151685664,2.60899221,2020.5,2019.2,2.79231423]
[1773151686263,2.60899221,2020.5,2019.3,2.79231423]
[1773151686470,2.60899221,2020.1,2018.7,2.79231423]
[1773151686862,2.60899221,2019.9,2018.7,2.79231423]
[1773151687063,2.60899221,2020.2,2018.9,2.79231423]
[1773151687265,2.60899221,2020.5,2019.3,2.79231423]
[1773151687467,0.00609693,2020.5,2019.3,2.7970493]
[1773151687770,0.00609693,2020.5,2019.5,2.79231423]
[1773151687968,0.00609693,2020.5,2019.7,2.79231423]
[1773151688369,2.61508914,2020.5,2019.4,2.79231423]
[1773151688570,0.00609693,2020.5,2019.4,2.79231423]
[1773151689367,2.61508914,2020.5,2019.4,2.79231423]
[1773151689864,2.60899221,2020.3,2019.4,2.79231423]
[1773151690360,0.00609693,2020.5,2019.4,2.79231423]
[1773151690563,0.00609693,2020.5,2019.6,2.79231423]
[1773151690762,6.0833,2021.9,2019.6,2.79231423]
[1773151690763,2.60899221,2021.5,2020.1,2.79231423]
[1773151690963,2.60899221,2021.8,2020.3,2.79231423]
[1773151691161,2.60899221,2022.5,2020.9,2.79231423]
[1773151691363,2.60899221,2022.8,2021.1,2.79231423]
[1773151691660,9.06399221,2023.1,2021.5,2.79231423]
[1773151691863,2.61417183,2023.1,2021.5,2.79744805]
[1773151692065,2.61417183,2023.1,2021.7,2.79231423]
[1773151692670,0.00517962,2023.1,2021.7,2.79231423]
[1773151692969,2.61417183,2023.1,2021.7,2.79231423]
[1773151693569,2.60899221,2022.9,2021.7,2.79231423]
[1773151693763,0.00517962,2023.1,2021.7,2.79231423]
[1773151694270,2.61417183,2023.1,2021.7,2.79231423]
[1773151694972,2.86130183,2023.1,2021.7,2.79231423]
[1773151696267,2.61417183,2023.1,2021.7,2.79231423]
[1773151696776,0.00517962,2023.1,2021.9,2.79231423]
[1773151696976,2.60899221,2023.7,2022.1,2.79231423]
[1773151697176,2.60899221,2023.7,2022.3,2.79231423]
[1773151697678,2.60899221,2023.5,2022.3,2.79231423]
[1773151697873,2.60899221,2023.5,2021.7,2.79231423]
[1773151698069,2.60899221,2023.5,2021.9,2.79231423]
[1773151698070,0.00535308,2023.5,2021.9,2.79231423]
[1773151698275,2.60899221,2024.2,2022.2,6.08199]
[1773151698471,6.07548,2024.5,2022.0,6.08268]
[1773151698472,2.60899221,2024.0,2022.4,2.79231423]
[1773151698975,2.60899221,2023.8,2022.4,2.79231423]
[1773151699173,2.60899221,2023.4,2022.4,2.79231423]
[1773151699469,2.61253913,2023.4,2022.4,2.79231423]
[1773151699671,0.00354692,2023.4,2022.4,2.79231423]
[1773151700369,2.61253913,2023.4,2022.4,2.79231423]
[1773151700577,2.60899221,2023.2,2021.6,2.79231423]
[1773151701571,2.60899221,2022.8,2021.6,2.79231423]
[1773151701777,2.60899221,2022.6,2021.5,2.79744805]
[1773151701971,0.24718,2022.7,2021.5,0.00513382]
[1773151701972,2.60899221,2022.4,2021.5,0.00513382]
[1773151702277,2.60899221,2021.8,2020.1,2.79231423]
[1773151703180,2.61277731,2021.8,2020.1,2.79661907]
[1773151703478,2.61277731,2021.8,2020.3,2.79231423]
[1773151704280,2.60899221,2021.7,2020.3,2.79231423]
[1773151704476,2.60899221,2021.3,2020.1,0.00430484]
[1773151704780,2.60899221,2021.1,2020.1,0.00430484]
[1773151705278,2.60899221,2021.1,2020.1,2.79661907]
[1773151706479,2.60899221,2021.2,2020.1,2.79661907]
[1773151708580,2.60899221,2021.1,2020.1,2.79661907]
[1773151708777,0.24734,2021.4,2020.1,2.79661907]
[1773151708975,2.85633221,2021.4,2020.1,2.79661907]
[1773151709682,2.60899221,2021.7,2020.1,2.79661907]
[1773151709882,2.60899221,2021.7,2020.4,0.24746]
[1773151710081,0.0037851,2021.8,2020.9,2.79231423]
[1773151710278,2.61277731,2021.8,2020.9,2.79231423]
[1773151710972,0.0037851,2021.8,2020.9,2.79231423]
[1773151711174,2.61277731,2021.8,2020.9,2.79231423]
[1773151712085,2.60899221,2021.4,2020.2,2.79231423]
[1773151712584,2.60899221,2021.2,2020.2,2.79231423]
[1773151712783,2.60899221,2021.2,2020.1,0.00430484]
[1773151712784,2.60899221,2021.0,2020.1,0.00430484]
[1773151712982,2.60899221,2020.8,2020.1,0.00430484]
[1773151713383,2.60899221,2021.3,2020.1,2.79661907]
[1773151713979,6.08417,2021.6,2020.1,2.79661907]
[1773151713980,2.62355216,2021.1,2020.1,2.79661907]
[1773151714682,2.62355216,2020.9,2020.1,0.00430484]
[1773151714882,2.62355216,2020.7,2019.8,2.63244244]
[1773151715082,2.62355216,2020.7,2019.1,0.24762]
[1773151715283,2.62355216,2020.5,2019.2,2.63244244]
[1773151715583,12.53879,2021.0,2019.2,2.63244244]
[1773151715584,2.87101216,2020.4,2019.2,2.63244244]
[1773151715981,2.62355216,2020.8,2019.2,2.88500999]
[1773151716180,6.17076597,2021.4,2019.2,2.88500999]
[1773151716181,2.62355216,2021.0,2019.7,2.63244244]
[1773151716375,2.87095216,2020.9,2019.7,2.63244244]
[1773151718190,2.62355216,2021.3,2019.7,2.63244244]
[1773151718390,2.62355216,2021.1,2019.7,2.63244244]
[1773151718686,2.62355216,2020.7,2019.7,2.63244244]
[1773151718987,2.87101216,2020.4,2019.3,2.63244244]
[1773151719786,2.87095216,2020.9,2019.3,2.63244244]
[1773151720089,2.62355216,2020.4,2019.3,2.63244244]
[1773151721487,2.62355216,2020.2,2019.3,2.63244244]
[1773151721692,2.62756185,2020.2,2019.3,2.63244244]
[1773151721885,2.87105216,2020.1,2019.3,2.63244244]
[1773151722089,2.87105216,2020.1,2019.2,0.00496755]
[1773151722384,0.00400969,2020.2,2019.2,2.63740999]
[1773151723090,0.00400969,2020.2,2019.2,2.88500999]
[1773151723287,2.62355216,2020.7,2019.2,2.88500999]
[1773151724293,2.62862646,2020.7,2019.2,2.88500999]
[1773151724889,0.0050743,2020.7,2019.7,2.63244244]
[1773151725090,2.87605646,2020.7,2019.7,2.63244244]
[1773151725590,0.0050743,2020.7,2019.7,2.63244244]
[1773151726388,2.56306388,2020.7,2019.7,2.63244244]
[1773151727193,0.0050743,2020.7,2019.7,2.63244244]
[1773151727394,2.56306388,2020.7,2019.7,2.63244244]
[1773151727989,2.55798958,2020.5,2019.4,2.72506946]
[1773151728993,2.55798958,2020.3,2019.4,2.72506946]
[1773151730787,0.0050743,2020.7,2019.4,2.72506946]
[1773151730788,2.55798958,2020.6,2019.4,2.72506946]
[1773151731193,2.55798958,2020.6,2019.6,2.72506946]
[1773151731794,2.55798958,2020.4,2019.3,2.72506946]
[1773151733094,2.55798958,2020.6,2019.3,2.72506946]
[1773151733300,2.80542958,2020.6,2019.3,2.72506946]
[1773151734090,0.0050743,2020.7,2019.5,2.72506946]
[1773151734694,0.0050743,2020.7,2019.7,2.72506946]
[1773151735299,2.55798958,2021.3,2019.9,2.72506946]
[1773151735597,2.55798958,2021.3,2020.1,2.72506946]
[1773151736398,2.56418853,2021.3,2020.1,2.72506946]
[1773151736713,2.81153853,2021.3,2020.3,2.72506946]
[1773151736894,2.56418853,2021.3,2020.3,2.72506946]
[1773151737296,0.00619895,2021.3,2020.3,2.72506946]
[1773151737594,2.56418853,2021.3,2020.3,2.72506946]
[1773151737802,0.00619895,2021.3,2020.3,2.72506946]
[1773151738097,2.80534958,2021.2,2020.3,2.72506946]
[1773151739396,2.55798958,2021.2,2020.3,2.72506946]
[1773151740003,2.80540958,2020.7,2019.6,2.72506946]
[1773151740796,2.80540958,2020.7,2019.2,0.00496755]
[1773151740797,2.55798958,2020.4,2019.3,2.72506946]
[1773151741199,2.55798958,2020.4,2018.8,2.72506946]
[1773151741200,2.55798958,2019.8,2018.8,2.72506946]
[1773151741398,0.24754,2019.7,2018.1,2.72506946]
[1773151741598,2.55798958,2019.6,2018.1,2.72506946]
[1773151742401,2.56301989,2019.6,2018.2,2.72506946]
[1773151743206,0.00503031,2019.6,2018.6,2.72506946]
[1773151743502,2.56301989,2019.6,2018.6,2.72506946]
[1773151744302,0.00503031,2019.6,2018.6,2.72506946]
[1773151745405,2.64308335,2019.6,2018.2,2.53328615]
[1773151746105,2.63805304,2019.4,2018.2,2.53328615]
[1773151748302,0.00503031,2019.6,2018.2,2.53328615]
[1773151748601,2.64308335,2019.6,2018.6,2.53328615]
[1773151749409,0.00503031,2019.6,2018.6,2.53328615]
[1773151750510,2.64308335,2019.6,2018.6,2.53328615]
[1773151750812,0.00503031,2019.6,2018.6,2.53328615]
[1773151751012,2.63805304,2020.3,2019.2,2.53328615]
[1773151751509,2.63805304,2020.2,2019.2,2.53328615]
[1773151751813,2.63805304,2020.0,2018.6,2.53328615]
[1773151752113,2.63805304,2019.8,2018.6,2.53328615]
[1773151754810,0.24754,2019.7,2018.6,2.53328615]
[1773151755012,2.63805304,2019.4,2018.6,2.53328615]
[1773151755204,2.63805304,2019.4,2018.2,2.53328615]
[1773151755508,2.63805304,2019.2,2018.2,2.53328615]
[1773151755713,2.63805304,2019.1,2018.2,2.53328615]
[1773151756105,2.63805304,2018.7,2016.7,2.53328615]
[1773151756315,2.63805304,2018.3,2016.7,2.53328615]
[1773151756508,2.63805304,2018.1,2016.7,2.53328615]
[1773151756817,6.456,2018.2,2016.7,2.53328615]
[1773151756818,2.63805304,2017.9,2016.7,2.53328615]
[1773151757012,2.63805304,2017.7,2016.4,2.53328615]
[1773151757205,2.63805304,2017.5,2016.0,2.53328615]
[1773151757410,2.63805304,2017.3,2016.1,2.53328615]
[1773151757920,2.63805304,2017.1,2016.1,2.53328615]
[1773151758111,2.63805304,2017.0,2016.1,2.53328615]
[1773151758411,6.09547,2017.8,2016.1,0.0039783]
[1773151758412,2.63805304,2016.9,2016.1,0.0039783]
[1773151758611,3.92611911,2017.9,2016.1,2.53726445]
[1773151758815,2.63805304,2017.7,2016.1,2.53726445]